Cogmind - Beta 16 @@@ ROGUE MODE // 2025.12.22 @ 12:31:24 Player: winnking222 Result: Self-destructed Performance ------------- Evolutions (3) 1500 Regions Visited (6) 1200 Robots Destroyed (79) 395 Value Destroyed (2121) 2121 Prototype IDs (27) 540 Alien Tech Used (0) 0 Bonus (315) 315 TOTAL SCORE: 6071 Bonus ------- Follower Combat Kills 33 Aligned with FarCom 300 Friendly Fire -18 Cogmind --------- Core Integrity 495/700 Matter 299/300 Energy 290/290 System Corruption 4% Temperature Warning (345) Movement Walking (175) Ox1 Location -7/Factory Parts ------- > --- POWER (1) -------- Improved Deuterium Engine > --- PROPULSION (4) --- Carbon-fiber Leg Carbon-fiber Leg Improved Carbon-fiber Leg > --- UTILITY (6) ------ Thermal Generator Thermal Generator High-capacity Storage Unit Advanced Visual Processing Unit Hardened Heavy Armor Plating > --- WEAPON (2) ------- Advanced Beam Rifle Advanced Beam Rifle > --- INVENTORY (20) --- Nuclear Core Fission Core Light Fission Core Wheel Huge Storage Unit Light Humpback Humpback Superbattery (1500) Experimental Sensor Array Improved Light Armor Plating Improved Light Armor Plating Advanced Beam Rifle Gatling Laser Plasma Cannon Precision Grenade Launcher Remote Datajack Plasma Cutter Powered Hammer Peak State ------------ > --- POWER ------------ Improved Deuterium Engine > --- PROPULSION ------- Carbon-fiber Leg Carbon-fiber Leg Improved Carbon-fiber Leg > --- UTILITY ---------- Improved Heat Sink Improved Heat Sink High-capacity Storage Unit Advanced Visual Processing Unit Hardened Heavy Armor Plating > --- WEAPON ----------- Advanced Beam Rifle Advanced Beam Rifle > --- INVENTORY -------- Nuclear Core Fission Core Light Fission Core Wheel Huge Storage Unit Light Humpback Humpback Superbattery Experimental Sensor Array Improved Light Armor Plating Improved Light Armor Plating Advanced Beam Rifle Gatling Laser Plasma Cannon Precision Grenade Launcher Improved Datajack Plasma Cutter Powered Hammer [Rating: 47] Favorites ----------- Power Improved Deuterium Engine Engine Improved Deuterium Engine Propulsion Carbon-fiber Leg Treads Light Treads Leg Carbon-fiber Leg Wheel Compact Wheel Utility High-capacity Storage Unit Device Improved Heat Sink Storage High-capacity Storage Unit Processor Salvage Targeting Computer Protection Light Armor Plating Weapon Advanced Beam Rifle Energy Gun Advanced Beam Rifle Ballistic Gun Light Assault Rifle Launcher Grenade Launcher Build | -11 -10 -10 -10 -9 -8 -7 ------- Run | Yrd Mat Min Exi Min Mat Fac Slots Evolved 6 | . . . . . 4 2 Power . | . . . . . . . Propulsion 2 | . . . . . 2 . Utility 4 | . . . . . 2 2 Weapon . | . . . . . . . Parts Attached 60 | 7 5 4 . 4 28 12 Power 8 | 1 . 1 . . 5 1 Engine 8 | 1 . 1 . . 5 1 Core . | . . . . . . . Reactor . | . . . . . . . Propulsion 15 | 2 2 1 . . 8 2 Treads 2 | 2 . . . . . . Leg 11 | . 1 . . . 8 2 Wheel 2 | . 1 1 . . . . Hover . | . . . . . . . Flight . | . . . . . . . Utility 21 | 2 3 . . 3 7 6 Device 9 | 1 1 . . 1 4 2 Storage 4 | 1 1 . . 2 . . Processor 2 | . . . . . 1 1 Hackware . | . . . . . . . Protection 6 | . 1 . . . 2 3 Artifact . | . . . . . . . Weapon 16 | 2 . 2 . 1 8 3 Energy Gun 5 | 1 . . . . 3 1 Energy Cannon . | . . . . . . . Ballistic Gun 9 | 1 . 1 . 1 5 1 Ballistic Cannon . | . . . . . . . Launcher 2 | . . 1 . . . 1 Special Weapon . | . . . . . . . Impact Weapon . | . . . . . . . Slashing Weapon . | . . . . . . . Piercing Weapon . | . . . . . . . Special Melee Weapon . | . . . . . . . Unidentified Prototypes 4 | . . . . . 2 2 Parts Lost 13 | . 1 3 . . 5 4 Power 2 | . . 1 . . 1 . Propulsion 4 | . 1 1 . . . 2 Utility 6 | . . 1 . . 3 2 Weapon 1 | . . . . . 1 . Highest Loss Streak 3 | . 1 3 . . 3 2 To Critical Strikes . | . . . . . . . Average Backups 14 | 4 8 9 14 17 17 17 Power 2 | . 1 . 3 5 4 3 Propulsion 2 | 2 3 3 3 3 1 1 Utility 4 | . 1 2 3 4 5 7 Weapon 3 | . 2 3 4 3 4 4 Tool/Special . | . . . . . . . Unused Backups 31 | . . . 1 3 9 18 Power 5 | . . . . . 2 3 Propulsion 2 | . . . . . 1 1 Utility 9 | . . . 1 1 1 6 Weapon 12 | . . . . 2 5 5 Tool/Special 3 | . . . . . . 3 Average Slot Usage (%) 94 | . 100 98 100 100 96 87 Engine 10 | . 14 13 14 14 8 7 Treads 3 | . 17 2 . . . . Leg 17 | . 6 . . . 34 26 Wheel 8 | . 4 24 28 28 1 . Device 11 | . 3 10 14 14 12 14 Storage 10 | . 14 14 14 14 9 7 Processor 4 | . . . . . 6 8 Protection 5 | . 10 2 . . 4 5 Energy Gun 8 | . 14 3 . . 3 14 Ballistic Gun 12 | . 14 24 28 28 13 . Peak Build Rating 47 | 7 8 8 11 13 39 47 Average Rating 25 | 5 7 7 9 12 33 43 On Entrance 12 | . 7 8 8 11 13 38 Avg Prop Armor Cover (%) 8 | . 7 10 . . 14 . Naked Turns . | . . . . . . . Heaviest Build 88 | 11 48 48 46 48 62 88 Greatest Support 60 | 40 40 32 32 32 60 58 Greatest Overweight (x) 2 | . 2 2 1 1 1 2 Average Overweight (x) . | . . 1 1 1 . . Largest Inventory Capacity 25 | 8 20 20 20 25 20 20 Average Capacity 18 | 7 11 20 20 20 20 20 Most Carried 20 | 7 11 12 18 20 20 20 Average Carried 15 | 4 8 9 15 19 19 19 Final Capacity 20 | 8 20 20 20 20 20 20 Final Carried 20 | 7 11 11 18 20 20 20 Class Distribution -------------------- 63% | Mutant 36% | Scavenger-Mutant Dominant Class ---------------- Mutant | -10/Materials Mutant | -10/Mines Mutant | -10/Exiles Mutant | -9/Mines Scavenger-Mutant | -8/Materials Mutant | -7/Factory Resources | -11 -10 -10 -10 -9 -8 -7 ----------- Run | Yrd Mat Min Exi Min Mat Fac Matter Collected 1620 | 275 108 110 . 124 846 157 Remotely . | . . . . . . . Salvage Created 3069 | 114 420 183 . 57 1714 581 Parts 182 | 12 30 19 . . 101 20 Haulers Intercepted 5 | . . . . . 3 2 Recyclers Shooed 5 | 1 . . . . 4 . Parts Field Recycled . | . . . . . . . Retrieved Matter . | . . . . . . . Parts Self-Destructed . | . . . . . . . Prevented . | . . . . . . . Parts Restored . | . . . . . . . Kills | -11 -10 -10 -10 -9 -8 -7 ------- Run | Yrd Mat Min Exi Min Mat Fac Combat Hostiles Destroyed 57 | . 13 7 . 4 22 11 Guns 50 | . 13 5 . 4 18 10 AOE 6 | . . 2 . . 4 . Classes Destroyed 13 | 2 4 . . 1 5 1 Worker 4 | . . . . . 4 . Builder 2 | . . . . . 2 . Tunneler 4 | 3 . . . . 1 . Hauler 5 | . . . . . 3 2 Recycler 5 | 1 . . . . 4 . Operator 2 | . 1 . . . 1 . Watcher 4 | . 2 . . . 2 . Swarmer 18 | . 6 3 . . 4 5 Grunt 24 | . 7 4 . . 11 2 Sentry 8 | . . . . . 6 2 Hunter 1 | . . . . . 1 . Programmer 2 | . . . . . . 2 Assembled 4 | . . . . 4 . . Best Kill Streak 7 | 4 3 3 . 2 7 3 Combat Bots Only 4 | . 3 3 . 2 4 3 Max Kills in Single Turn 4 | 2 1 1 . 1 4 2 Gunslinging 1 | . . . . . . 1 Exploded 2 | . . 1 . . 2 . Melee . | . . . . . . . Uniques/NPCs Destroyed . | . . . . . . . Combat | -11 -10 -10 -10 -9 -8 -7 -------- Run | Yrd Mat Min Exi Min Mat Fac Hostile Shots Fired 356 | . 73 39 . 10 126 108 Missed 101 | . 19 7 . 5 32 38 Hits 255 | . 54 32 . 5 94 70 Melee 1 | . . . . 1 . . Projectile 254 | . 54 32 . 4 94 70 Critical Strikes 6 | . 1 . . . 4 1 Damage Taken 3458 | . 539 261 . 78 1355 1225 Core 553 | . 110 52 . 32 154 205 Absorbed by Shields . | . . . . . . . Core Remaining (%) 64 | 100 . . . 22 72 . Volleys Fired 243 | 5 65 19 . 16 88 50 Largest 2 | 2 2 2 . 2 2 2 Hottest 122 | 60 60 60 . 43 122 122 Shots Fired 474 | 10 126 35 . 32 170 101 Gun 468 | 10 126 32 . 32 167 101 Cannon . | . . . . . . . Launcher 6 | . . 3 . . 3 . Special . | . . . . . . . Kinetic 263 | 5 65 20 . 32 141 . Thermal 205 | 5 61 12 . . 26 101 Explosive 6 | . . 3 . . 3 . Electromagnetic . | . . . . . . . Robot Hit Streak 13 | 4 10 8 . 8 13 12 Robot Miss Streak 8 | 1 6 2 . 3 4 8 Penetration Max 1 | . . . . . 1 . Secondary Targets 10 | . 5 1 . 2 1 1 Max Gunslinging Chain 1 | . 1 1 . 1 1 1 Shots Hit Robots 287 | 7 71 21 . 18 111 59 Core Hits 143 | 6 31 14 . 9 62 21 Critical Kills 1 | . . . . . 1 . Critical Parts Destroyed 2 | . . . . . 2 . Critical Strikes 10 | . . . . . 3 7 Burn 7 | . . . . . . 7 Destroy 3 | . . . . . 3 . Melee Attacks . | . . . . . . . Impact . | . . . . . . . Slashing . | . . . . . . . Piercing . | . . . . . . . Sneak Attacks . | . . . . . . . Combat Hostiles . | . . . . . . . Follow-up Attacks . | . . . . . . . Damage Inflicted 5044 | 79 706 308 . 232 2444 1275 Guns 4540 | 79 703 205 . 232 2046 1275 Cannons . | . . . . . . . Explosions 501 | . . 103 . . 398 . Melee . | . . . . . . . Ramming 3 | . 3 . . . . . Kinetic 2333 | 23 294 118 . 232 1666 . Thermal 2207 | 56 409 87 . . 380 1275 Explosive 501 | . . 103 . . 398 . Electromagnetic . | . . . . . . . Impact . | . . . . . . . Slashing . | . . . . . . . Piercing . | . . . . . . . Highest Corruption 4 | . . . . . 2 4 Average Corruption 1 | . . . . . 2 1 Corruption Purged . | . . . . . . . Corruption Blocked . | . . . . . . . Effects 13 | . . . . . 3 10 Message Errors 1 | . . . . . . 1 Matter Fused 4 | . . . . . 1 3 Heat Flow Errors 2 | . . . . . . 2 Energy Discharges 2 | . . . . . 2 . Data Loss (minor) 1 | . . . . . . 1 Data Loss (major) 1 | . . . . . . 1 Misfires 1 | . . . . . . 1 Alerts 1 | . . . . . . 1 Overload Shots . | . . . . . . . Overflow Damage 8 | . . . . . 8 . Projectiles . | . . . . . . . Explosions 8 | . . . . . 8 . Melee . | . . . . . . . Knockbacks . | . . . . . . . Impact . | . . . . . . . Kinetic . | . . . . . . . Secondary . | . . . . . . . Self-Inflicted Damage 124 | . . . . . 46 78 Shots 4 | . . . . . 3 1 Rammed 3 | . 3 . . . . . Targets Rammed 3 | . 3 . . . . . Kicked . | . . . . . . . Crushed . | . . . . . . . Highest Temperature 345 | 20 103 81 . 2 18 345 Average Temperature 44 | 13 36 47 . 1 10 84 Received Heat Transfer 891 | . 186 18 . . 567 120 Effects 3 | . . . . . . 3 Interference 3 | . . . . . . 3 Siege Activations . | . . . . . . . Martial Activations . | . . . . . . . Shielding Activations . | . . . . . . . Robots Disrupted . | . . . . . . . Combat Hostiles . | . . . . . . . Robots Corrupted . | . . . . . . . Combat Hostiles . | . . . . . . . Parts Fried . | . . . . . . . Impact Corruptions . | . . . . . . . Robots Melted 1 | . . . . . . 1 Combat Hostiles 1 | . . . . . . 1 Parts Melted 23 | . . 1 . . 3 19 Heat Transferred 4691 | 125 925 200 . . 703 2738 Parts Sabotaged . | . . . . . . . Parts Stolen . | . . . . . . . Parts Stripped . | . . . . . . . Power Chain Reactions . | . . . . . . . Alert | -11 -10 -10 -10 -9 -8 -7 ------- Run | Yrd Mat Min Exi Min Mat Fac Maximum Alert Level 1 | . . . . . 1 . Low Security (%) 89 | 100 100 100 . 100 62 100 Level 1 10 | . . . . . 37 . Level 2 . | . . . . . . . Level 3 . | . . . . . . . Level 4 . | . . . . . . . Level 5 . | . . . . . . . High Security . | . . . . . . . Max Security . | . . . . . . . Peak Influence 371 | 20 122 90 . . 371 164 Initial 164 | . 6 . . . . 164 Average 66 | 3 39 15 . . 154 48 Influence Increases 1858 | 20 367 219 . . 900 352 Destroy 0b10 Robot/C 1080 | . 260 140 . . 460 220 Destroy 0b10 Robot/NC 135 | 20 15 . . . 90 10 Destroy Leader 300 | . 64 30 . . 142 64 Allied During Kill 18 | . . 14 . . 4 . Successful Hack 58 | . 28 5 . . 23 2 Disable Machine 120 | . . 15 . . 60 45 Destroy Structure 42 | . . 15 . . 16 11 Lose Combat Pursuer 105 | . . . . . 105 . Influence Decreases 1803 | 10 377 217 2 . 537 660 Entered New Map 205 | . 4 . 2 . . 199 Time Decay 1460 | 10 363 179 . . 467 441 Lost Part 100 | . 10 20 . . 50 20 Lost Ally 38 | . . 18 . . 20 . Squads Dispatched 17 | . 3 . . . 5 9 Investigation 4 | . 1 . . . 1 2 Extermination 3 | . . . . . . 3 Reinforcement 7 | . 2 . . . 4 1 Assault . | . . . . . . . Garrison 3 | . . . . . . 3 Intercept . | . . . . . . . Searches Triggered . | . . . . . . . Construction Impeded 1 | . . . . . 1 . Haulers Reinforced 1 | . . . . . . 1 Active Scanning Responses . | . . . . . . . Cargo Convoy Interrupts . | . . . . . . . Stealth | -11 -10 -10 -10 -9 -8 -7 --------- Run | Yrd Mat Min Exi Min Mat Fac Distress Signals 8 | . . . . 2 5 1 Communications Jammed . | . . . . . . . Distress Signals . | . . . . . . . Times Spotted 98 | . 26 6 . 7 38 21 Peak Tracking Total 5 | . 5 3 . 3 4 4 Tactical Retreats 4 | . . . . 1 3 . Traps | -11 -10 -10 -10 -9 -8 -7 ------- Run | Yrd Mat Min Exi Min Mat Fac Traps Triggered 2 | . . . . . 1 1 Indirectly . | . . . . . . . Trap Hack Attempts . | . . . . . . . Triggered . | . . . . . . . Disarmed . | . . . . . . . Reprogrammed . | . . . . . . . Reused . | . . . . . . . Traps Extracted . | . . . . . . . Installed . | . . . . . . . Triggered . | . . . . . . . Machines | -11 -10 -10 -10 -9 -8 -7 ---------- Run | Yrd Mat Min Exi Min Mat Fac Machines Disabled 8 | . . 1 . . 4 3 Max in Single Turn 1 | . . 1 . . 1 1 Machines Repaired . | . . . . . . . Machines Dismantled . | . . . . . . . Machines Sabotaged . | . . . . . . . Overloaded Fab Kills . | . . . . . . . Hacking | -11 -10 -10 -10 -9 -8 -7 --------- Run | Yrd Mat Min Exi Min Mat Fac Machines Accessed 19 | . 6 1 2 . 6 4 Terminals 13 | . 6 1 . . 5 1 Fabricators 1 | . . . . . . 1 Repair Stations . | . . . . . . . Recycling Units . | . . . . . . . Scanalyzers 3 | . . . . . 1 2 Garrison Access . | . . . . . . . Total Hacks 53 | . 17 2 2 . 23 9 Successful 23 | . 9 1 2 . 7 4 Failed 29 | . 8 1 . . 15 5 Catastrophic 2 | . . . . . 1 1 Database Lockouts 1 | . . . . . 1 . Manual 41 | . 17 . 1 . 18 5 Terminals 40 | . 17 2 . . 20 1 Fabricators 4 | . . . . . . 4 Repair Stations . | . . . . . . . Recycling Units . | . . . . . . . Scanalyzers 7 | . . . . . 3 4 Garrison Access . | . . . . . . . Terminal Hacks 4 | . 1 1 2 . . . Record 1 | . . . 1 . . . Part Schematic 1 | . 1 . . . . . Investigation Status 1 | . . 1 . . . . Proto ID Catalog 1 | . . . 1 . . . Fabricator Hacks . | . . . . . . . Repair Station Hacks . | . . . . . . . Recycling Unit Hacks . | . . . . . . . Scanalyzer 6 | . . . . . 2 4 Insert Component 1 | . . . . . 1 . Retrieve Study 5 | . . . . . 1 4 Garrison Access Hacks . | . . . . . . . Unauthorized Hacks 13 | . 8 . . . 5 . Terminals 13 | . 8 . . . 5 . Botnet 8 | . 4 . . . 4 . Skim 5 | . 4 . . . 1 . Fabricators . | . . . . . . . Repair Stations . | . . . . . . . Recycling Units . | . . . . . . . Scanalyzers . | . . . . . . . Garrison Access . | . . . . . . . Data Cores Recovered 2 | . 1 . . . 1 . Used . | . . . . . . . Hacking Detections 8 | . 2 1 . . 3 2 Full Trace Events 4 | . 2 . . . 1 1 Feedback Events . | . . . . . . . Feedback Blocked . | . . . . . . . Robot Schematics Acquired . | . . . . . . . Robots Built . | . . . . . . . Authchips . | . . . . . . . Time . | . . . . . . . Total Robot Build Rating . | . . . . . . . Part Schematics Acquired 1 | . 1 . . . . . Parts Built . | . . . . . . . Authchips . | . . . . . . . Time . | . . . . . . . Total Part Build Rating . | . . . . . . . Part Studies Acquired 5 | . . . . . 1 4 Parts Repaired . | . . . . . . . Time . | . . . . . . . Parts Recycled . | . . . . . . . Recycled Matter . | . . . . . . . Retrieved Matter . | . . . . . . . Retrieved Components . | . . . . . . . Parts Scanalyzed . | . . . . . . . Part Schematics Acquired . | . . . . . . . Parts Damaged . | . . . . . . . Bothacking | -11 -10 -10 -10 -9 -8 -7 ------------ Run | Yrd Mat Min Exi Min Mat Fac Used RIF Installer . | . . . . . . . Robots Hacked . | . . . . . . . Non-combat . | . . . . . . . Combat . | . . . . . . . Robot Hacks Applied . | . . . . . . . Relay Couplers Released . | . . . . . . . Fabnet Peak Effective % . | . . . . . . . Robots Rewired . | . . . . . . . Allies Hacked . | . . . . . . . Hacks Repelled . | . . . . . . . Allies | -11 -10 -10 -10 -9 -8 -7 -------- Run | Yrd Mat Min Exi Min Mat Fac Total Allies 6 | . . 5 . 1 . . Largest Group 5 | . . 5 4 3 1 . Highest-Rated Group 84 | . . 84 76 63 31 . Highest-Rated Ally 31 | . . 31 31 31 31 . Total Orders . | . . . . . . . Ally Attacks 45 | . . 1 . 29 15 . Total Damage 377 | . . 12 . 238 127 . Kills 5 | . . . . 3 2 . Allies Corrupted . | . . . . . . . Allies Melted . | . . . . . . . Intel | -11 -10 -10 -10 -9 -8 -7 ------- Run | Yrd Mat Min Exi Min Mat Fac Active Infowar (turns) 3719 | 12 258 647 433 358 340 1671 Optics 1671 | . . . . . . 1671 Seismic 2048 | 12 258 647 433 358 340 . Robot Analysis Total . | . . . . . . . Derelict Logs Recovered 3 | . . 1 . 2 . . Drone Launches . | . . . . . . . Drone Recoveries . | . . . . . . . Exploration | -11 -10 -10 -10 -9 -8 -7 ------------- Run | Yrd Mat Min Exi Min Mat Fac Turns Passed 6223 | 118 1055 823 433 358 1537 1899 Spaces Moved 3650 | 60 578 595 366 206 843 1002 Core 11 | 11 . . . . . . Treads 394 | 49 345 . . . . . Legs 1787 | . . . . . 785 1002 Wheels 1458 | . 233 595 366 206 58 . Hover . | . . . . . . . Flight . | . . . . . . . Fastest Speed 50 | 50 130 115 115 115 108 108 Average Speed 139 | 139 147 117 115 115 138 163 Slowest Speed 245 | 160 160 130 115 115 190 245 Overloaded Moves . | . . . . . . . Propulsion Burnouts . | . . . . . . . Robots Hopped . | . . . . . . . Potential Cave-ins . | . . . . . . . Cave-ins Triggered 1 | . . . . . . 1 Exploration Rate (%) 59 | 4 96 96 69 53 61 39 Regions Visited 6 Branch Regions 3 Pre-discovered Areas 2 | . . 1 1 . . . Known Exits Taken 1 | . . . . 1 . . Unknown Exits Taken 5 | 1 1 1 1 . 1 . Scrap Searched 2 | . . 1 . 1 . . Spaces Dug . | . . . . . . . Terrain Destroyed 45 | . . 15 . . 17 13 Melee . | . . . . . . . Projectile . | . . . . . . . AOE 45 | . . 15 . . 17 13 Terrain Rammed . | . . . . . . . Walls Destroyed . | . . . . . . . Machines Disabled . | . . . . . . . Actions | -11 -10 -10 -10 -9 -8 -7 --------- Run | Yrd Mat Min Exi Min Mat Fac Total 4328 | 85 662 688 379 300 1052 1162 Wait 242 | . 5 63 5 60 30 79 Move 3644 | 59 577 594 365 205 842 1002 Hop . | . . . . . . . Pick Up 71 | 14 6 4 7 6 28 6 Fast Attach 17 | . . . . . 8 9 Attach 28 | 7 1 3 . . 15 2 Detach . | . . . . . . . Swap 26 | . 4 4 . 6 10 2 Drop 54 | . 1 1 2 7 31 12 Fire 243 | 5 65 19 . 16 88 50 Melee . | . . . . . . . Ram . | . . . . . . . Kick . | . . . . . . . Crush 3 | . 3 . . . . . Escape Stasis . | . . . . . . . Rewire . | . . . . . . . Trap . | . . . . . . . Miscellaneous . | . . . . . . . Route ------- -11/Scrapyard -10/Materials (discovered 6 exits: [*Mat x3] / *Min x2 / [*Sub]) -10/Mines (discovered 3 exits: [*Mat x2] / *Exi) -10/Exiles -9/Mines -8/Materials -7/Factory (discovered 4 exits: [*Fac x2] / *Low x2) History --------- Turn | Location | Event 43 | -11/Scrapyard | Discovered new exit (range 16) 119 | -11/Scrapyard | Entered Materials 318 | -10/Materials | Build established: Mutant 320 | -10/Materials | Discovered new exit (range 13) 473 | -10/Materials | Discovered new exit (range 12) 576 | -10/Materials | Discovered new exit (range 16) 743 | -10/Materials | Discovered new exit (range 5) 824 | -10/Materials | Discovered new exit (range 16) 996 | -10/Materials | Discovered new exit (range 14) 1174 | -10/Materials | Entered Mines 1175 | -10/Mines | Learned location of Storage (-9) 1204 | -10/Mines | Discovered new exit (range 5) 1325 | -10/Mines | Core integrity fell below 50% 1363 | -10/Mines | Lost 3 parts (1p1n1u) 1601 | -10/Mines | Assisted by bots powering up and referring to "LRC-V3" 1651 | -10/Mines | Discovered new exit (range 11) 1884 | -10/Mines | A weapon hastily lodged in a ceiling crevice suddenly fell to the ground 1965 | -10/Mines | Deemed a non-threat by the Exiles lab entrance 1965 | -10/Mines | Discovered new exit (range 5) 1997 | -10/Mines | Entered Exiles 1997 | -10/Exiles | Accompanied by 4 allies 2026 | -10/Exiles | Met 8R-AWN 2027 | -10/Exiles | Led the pair of lost Derelicts to a safe place 2072 | -10/Exiles | Met EX-HEX 2104 | -10/Exiles | Met EX-BIN 2118 | -10/Exiles | Aligned with FarCom system 2119 | -10/Exiles | Given EX-Vault access code 2145 | -10/Exiles | Opened EX-Vault 2161 | -10/Exiles | Found Superbattery 2183 | -10/Exiles | Warned to stay clear of 0b10 Research branches 2215 | -10/Exiles | Met EX-DEC 2222 | -10/Exiles | Learned location of Zion (-6) 2408 | -10/Exiles | Discovered new exit (range 15) 2430 | -10/Exiles | Left Exiles lab with Superbattery 2430 | -10/Exiles | Entered Mines 2430 | -9/Mines | Accompanied by 2 allies 2449 | -9/Mines | Assembled infested the area 2454 | -9/Mines | Assisted by a Guerilla fighting off Assembled 2565 | -9/Mines | Identified exit to Materials 2577 | -9/Mines | Found DCF Scrap (14 items) 2624 | -9/Mines | Found a damaged Exp. Sensor Array with a note attached 2629 | -9/Mines | Found Prototype Device 2724 | -9/Mines | Received a Mining Laser from a helpful Derelict 2788 | -9/Mines | Entered Materials 2788 | -8/Materials | Accompanied by 1 ally 2788 | -8/Materials | Evolved 4 slots: Propulsion x2, Utility x2 2909 | -8/Materials | Lost 3 parts (1p1u1w) 3187 | -8/Materials | Build established: Scavenger-Mutant 3938 | -8/Materials | Central database locked down 4020 | -8/Materials | Discovered new exit (range 9) 4325 | -8/Materials | Entered Factory 4325 | -7/Factory | Evolved 2 slots: Utility x2 4326 | -7/Factory | Identified exit to Lower Caves 4497 | -7/Factory | Garrison activated, responded to threat 5367 | -7/Factory | Discovered new exit (range 5) 5426 | -7/Factory | Build established: Mutant 5591 | -7/Factory | Discovered exit to Lower Caves (range 8) 5755 | -7/Factory | Crushed by falling debris 5924 | -7/Factory | Discovered new exit (range 10) 6224 | -7/Factory | Self-destructed Last Messages --------------- 06091_ K-01 Serf collects debris. 06092_ System corrupted: Matter fused (-10). 06092_ U-05 Engineer works on Matter Pump. 06093_ Acquired 59 matter. 06094_ K-01 Serf collects debris. 06095_ U-05 Engineer works on Matter Pump. 06097_ K-01 Serf collects debris. 06097_ U-05 Engineer works on Matter Pump. 06099_ K-01 Serf collects debris. 06100_ U-05 Engineer completes Matter Pump. 06102_ K-01 Serf cleans the Fabricator. 06115_ Matter Pump comes online. 06140_ K-01 Serf cleans the Matter Pump. 06156_ System corrupted: Heat flow error (+210). 06215_ System corrupted: Component data lost. 06215_ Slug penetrates P-60 Hacker. 06221_ Destroyed Gravmag System. 06222_ Overheating: System interference. 06222_ Adv. Beam Rifle temporarily disabled. 06222_ Adv. Visual Processing Unit temporarily disabled. Map ----- +----------------------------------------------------+ | ?????????????????????????????????????????????????? | | ?????????????????????????????????????????????????? | | ?????????????????????????????????????????????????? | | ?????????????????????????????????????????????????? | | ?????????????????????????????????????????????????? | | ?????????????????????????????????????????????????? | | ?????????????????????????????????????????????????? | | ?????????????????????????????????????????????????? | | ?????????????????????????????????????????????????? | | ?????????????????????????????????????????????????? | | ?????????????????????????????????????????????????? | | ?????????????????????????????????????????????????? | | ?????????????????????????????????????????????????? | | ?????????????????????????????????????????????????? | | ?????????????????????????????????w??????? ??????? | | ??????????????????????????????????????? ??????? | | ?###########???????##############g#### ?????? | | ?# ]]] #???????# g p ?????? | | ?# ]]] #???????# g "??????? | | ?# ]]] #???????# ""?????? | | ?# #######?# ""?????? | | ?? """ """ # ] #?# ! ???? | | ?? """ """ # ### ???? | | ?? """ """ + " ???? | | ?# # ######h##+######+####???????????? | | ############ # p@ #??????????????????? | | # ???## ## ! * #??????????????????? | | ##### ## #??????????????????? | | * ## """ """ #??????????????????? | | ! ## """ """ #??????????????????? | | ## """ """ ! #??????????????????? | | ### #??????????????????? | | #?# """ """ ! #??????????????????? | | ### """ """ #?# """ """ #??????????????????? | | ??# """ """ #?# """ """ #??????????????????? | | ??# """ """ #?#?? ?? #??????????????????? | | ??# #????? ?? #??????????????????? | | ??# """ """ #?????####??####??????????????????? | | ??# """ """ #?????????????????????????????????? | | ??# """ """ #?????????????###########?????????? | | ??# ##########????# #?????????? | | ??# """ """=!# #????# #?????????? | | ### ^""" """[]# #????# #?????????? | | """ ""%] # """" #????# #?????????? | | *[]# """" #######+#+######?????????? | | !# """" # #??????????????? | | ! "F"" # """" # #?????????????## | | """" # # #?????????????# | | # # ############### | | # # ##### | +----------------------------------------------------+ Best States ------------- Heat Dissipation 62 Energy Generation 16 Energy Capacity 290 Matter Stores 300 Matter Capacity 300 Sight Range 20 Terrain Scan Density 10 Armor Coverage 600 Evasion (%) 55 Recoil Reduction 2 Salvage Targeting 1 Item Schematics ----------------- Huge Storage Unit | -10/Materials | Hacked Robot Schematics ------------------ None Fabricated ------------ Nothing Repaired ---------- Nothing Studied --------- Carbon-fiber Leg | -8/Materials | Hacked Gatling Laser | -7/Factory | Hacked Imp. Datajack | -7/Factory | Hacked Plasma Cannon | -7/Factory | Hacked Imp. Carbon-fiber Leg | -7/Factory | Hacked Alien Tech Used ----------------- None Achievements -------------- None Challenges ------------ None Game ------ Seed PointMissileRailcannon Manual? 0 Play Time 00:39:41 Cumulative 210.1 hours Start 2025.12.19 @ 12:58:28 End 2025.12.22 @ 12:31:24 Sessions 3 Manual Loads 0 Difficulty Rogue Special Mode None Game No. 292 Rogue 292 Adventurer 0 Explorer 0 Win Type - Total 3 Types 2/0/0/1/0/0/0/0/0/0 Lore% 73 Gallery% 73 Achievement% 47 Wizard Run 0 Options --------- Layout 0 ASCII 0 Keyboard 0 Movement Mouse Keybinds 0 Fullscreen 1 Font 16/SmallcapsGlow Map View 75x55 Zoom Use 0% Tactical HUD 1 Map Filters NONE Filters NONE Steam 1 RUN: 7c8741e2-e61c-4f47-a053-df65307d5af3